bitfinex/quotes_SOLUSD_20250907
["timestamp","ask_amount","ask_price","bid_price","bid_amount"]
[1757224279019,51.05559401,203.1,203.09,8.43832915]
[1757224285749,51.05559401,203.1,203.09,9.09832915]
[1757224285948,51.05559401,203.1,203.09,13.02823694]
[1757224286543,0.06,203.1,203.09,13.02823694]
[1757224286728,37.46,203.1,203.09,13.02823694]
[1757224287438,51.73559401,203.1,203.09,8.43832915]
[1757224287619,56.65927692,203.1,203.09,8.43832915]
[1757224288852,56.65927692,203.1,203.09,8.43852366]
[1757224289228,60.58918471,203.1,203.09,8.43852366]
[1757224289550,39.59559401,203.07,203.06,0.03]
[1757224289737,39.59559401,203.07,203.05,0.03]
[1757224289738,13.59559401,203.06,203.05,0.03]
[1757224289939,18.2055018,203.06,203.05,0.03]
[1757224290947,31.56867827,203.06,203.05,0.03]
[1757224293553,34.14231954,203.06,203.05,0.03]
[1757224296655,59.21388809,203.06,203.05,2.00292165]
[1757224296962,61.18680974,203.06,203.05,2.00292165]
[1757224297468,61.18680974,203.06,203.05,0.03]
[1757224298646,61.18680974,203.06,203.05,2.06292165]
[1757224300261,61.18680974,203.06,203.05,0.03]
[1757224302053,61.18680974,203.06,203.05,2.15292165]
[1757224305143,63.70394063,203.06,203.05,0.03]
[1757224309572,63.76394063,203.06,203.05,0.03]
[1757224311270,61.24680974,203.06,203.05,0.03]
[1757224314472,60.56680974,203.06,203.05,0.03]
[1757224314660,63.08394063,203.06,203.05,0.03]
[1757224316477,63.77394063,203.06,203.05,0.03]
[1757224319481,61.80101898,203.06,203.05,0.03]
[1757224328486,61.11101898,203.06,203.05,0.03]
[1757224328876,61.80101898,203.06,203.05,0.03]
[1757224329693,111.60558359,203.06,203.05,0.03]
[1757224340306,110.91558359,203.06,203.05,0.03]
[1757224340611,108.3984527,203.06,203.05,0.03]
[1757224341009,109.0784527,203.06,203.05,0.03]
[1757224342000,108.3784527,203.06,203.05,0.74]
[1757224342193,110.89558359,203.06,203.05,0.74]
[1757224342604,108.3784527,203.06,203.05,0.74]
[1757224342798,110.89558359,203.06,203.05,0.74]
[1757224347503,123.88721561,203.06,203.02,0.03]
[1757224347697,16.1127249,203.03,203.02,0.74]
[1757224348011,16.1127249,203.03,203.02,3.2311163]
[1757224348012,53.6127249,203.03,203.02,3.2311163]
[1757224349014,56.02097449,203.03,203.02,3.2311163]
[1757224350402,58.53810538,203.03,203.02,2.5211163]
[1757224354912,56.02097449,203.03,203.02,2.5211163]
[1757224355115,58.53810538,203.03,203.02,2.5211163]
[1757224355811,56.02097449,203.03,203.02,2.5211163]
[1757224356015,58.53810538,203.03,203.02,2.5211163]
[1757224356919,51.09559401,203.03,203.02,3.2311163]
[1757224359908,51.09559401,203.03,203.02,3.23141595]
[1757224368027,51.09559401,203.03,203.02,3.23055099]
[1757224369725,37.5,203.03,203.02,7.16374655]
[1757224369917,37.5,203.03,203.02,3.23055099]
[1757224373026,37.5,203.03,203.02,7.16374655]
[1757224374329,37.5,203.03,203.02,7.16271722]
[1757224379936,37.5,203.03,203.02,14.35543444]
[1757224381629,37.5,203.03,203.02,19.28105753]
[1757224384734,37.5,203.03,203.02,14.35543444]
[1757224384929,56.72097449,203.03,203.02,2.51952166]
[1757224386524,60.65417005,203.03,203.02,2.51952166]
[1757224388541,60.65417005,203.03,203.02,0.03]
[1757224395147,56.72097449,203.03,203.02,0.03]
[1757224395327,60.65417005,203.03,203.02,0.03]
[1757224405644,56.72097449,203.03,203.02,0.03]
[1757224413767,56.72097449,203.03,203.02,2.50294288]
[1757224416253,56.72097449,203.03,203.02,2.50301185]
[1757224419870,56.72097449,203.03,203.02,2.50333065]
[1757224420465,56.02097449,203.03,203.02,2.50333065]
[1757224420873,0.06,203.04,203.02,5.72134265]
[1757224421056,51.09559401,203.03,203.02,2.548012]
[1757224421257,51.09559401,203.03,203.02,5.00229541]
[1757224421659,51.09559401,203.03,203.02,5.70229541]
[1757224422063,56.02097449,203.03,203.02,5.70229541]
[1757224425876,56.02097449,203.03,203.02,5.70305012]
[1757224427078,56.02097449,203.03,203.02,8.22106212]
[1757224427374,56.02097449,203.03,203.02,5.70305012]
[1757224427576,51.09559401,203.03,203.02,8.22106212]
[1757224432583,51.09559401,203.03,203.02,5.70305012]
[1757224440389,51.09559401,203.03,203.02,5.00305012]
[1757224440789,56.02097449,203.03,203.02,5.00305012]
[1757224440975,56.02097449,203.03,203.02,5.00594757]
[1757224441894,51.09559401,203.03,203.02,5.00594757]
[1757224445597,56.02097449,203.03,203.02,5.00594757]
[1757224456302,56.70097449,203.03,203.02,5.00594757]
[1757224456500,56.02097449,203.03,203.02,5.00594757]
[1757224457293,56.70097449,203.03,203.02,5.00594757]
[1757224457492,59.21898649,203.03,203.02,5.00594757]
[1757224457694,59.21898649,203.03,203.02,2.50261692]
[1757224458596,59.21898649,203.03,203.02,2.48110564]
[1757224464307,56.70097449,203.03,203.02,2.48110564]
[1757224464487,59.21898649,203.03,203.02,2.48110564]
[1757224465204,56.70097449,203.03,203.02,2.48110564]
[1757224465387,59.21898649,203.03,203.02,2.48110564]
[1757224465812,59.21898649,203.03,203.02,0.03]
[1757224479522,60.6359267,203.03,203.02,0.03]
[1757224499969,62.60943239,203.03,203.02,0.03]
[1757224501346,60.6359267,203.03,203.02,0.03]
[1757224501726,56.70097449,203.03,203.02,0.03]
[1757224502046,60.6359267,203.03,203.02,0.03]
[1757224502249,62.63943238,203.03,203.02,0.03]
[1757224502634,60.6359267,203.03,203.02,0.03]
[1757224503871,23.1359267,203.03,203.02,0.03]
[1757224504072,60.5959267,203.03,203.02,0.03]
[1757224513471,56.66097449,203.03,203.02,0.03]
[1757224513664,60.5959267,203.03,203.02,0.03]
[1757224532880,60.5959267,203.03,203.02,2.49015918]
[1757224533079,18.52097449,203.03,203.02,2.49015918]
[1757224533283,55.98097449,203.03,203.02,3.21015918]
[1757224534097,59.9159267,203.03,203.02,3.21015918]
[1757224535699,59.9159267,203.03,203.02,2.49015918]
[1757224538493,59.9159267,203.03,203.02,3.21015918]
[1757224540194,55.98097449,203.03,203.02,3.21015918]
[1757224540398,59.9159267,203.03,203.02,2.505475]
[1757224541592,58.49938803,203.03,203.02,2.505475]
[1757224546010,58.49938803,203.03,203.02,2.505475]
[1757224546607,55.98097449,203.03,203.02,2.505475]
[1757224546986,58.49938803,203.03,203.02,2.505475]
[1757224549700,55.98097449,203.03,203.02,2.505475]
[1757224549904,58.49938803,203.03,203.02,2.505475]
[1757224557512,55.98097449,203.03,203.02,2.505475]
[1757224557688,58.49938803,203.03,203.02,2.505475]
[1757224558410,59.14938803,203.03,203.02,2.505475]
[1757224558922,55.98097449,203.03,203.02,2.505475]
[1757224559214,58.49938803,203.03,203.02,2.505475]
[1757224561205,59.14938803,203.03,203.02,2.505475]
[1757224562721,55.98097449,203.03,203.02,2.505475]
[1757224563014,58.49938803,203.03,203.02,2.505475]
[1757224563219,58.49938803,203.03,203.02,5.71563418]
[1757224563809,55.98097449,203.03,203.02,5.71563418]
[1757224564019,58.49938803,203.03,203.02,5.71563418]
[1757224567417,55.98097449,203.03,203.02,5.71563418]
[1757224567624,58.49938803,203.03,203.02,5.71563418]
[1757224568202,58.49938803,203.03,203.02,5.71552782]
[1757224568397,55.98097449,203.03,203.02,5.71552782]
[1757224572011,55.98097449,203.03,203.02,6.40552782]
[1757224572012,51.03559401,203.03,203.02,6.40552782]
[1757224572197,37.44,203.03,203.02,6.40552782]
[1757224572403,37.44,203.03,203.02,8.92394136]
[1757224573931,37.44,203.03,203.02,6.40552782]
[1757224574610,37.44,203.03,203.02,8.92394136]
[1757224581840,37.44,203.03,203.02,6.40552782]
[1757224587613,37.44,203.03,203.02,8.92394136]
[1757224588217,37.44,203.03,203.02,13.84956445]
[1757224588624,37.44,203.03,203.02,8.92394136]
[1757224588945,31.27912126,203.03,203.02,8.92394136]
[1757224589340,31.27912126,203.03,203.02,13.84956445]
[1757224599550,31.33912126,203.03,203.02,13.84956445]
[1757224600425,31.33912126,203.03,203.02,11.37419581]
[1757224600632,31.33912126,203.03,203.02,13.83829905]
[1757224601456,31.33912126,203.03,203.02,15.25144409]
[1757224607740,31.33912126,203.03,203.02,15.25106365]
[1757224615059,31.33912126,203.03,203.02,15.25253874]
[1757224616468,31.33912126,203.03,203.02,14.56253874]
[1757224619079,31.33912126,203.03,203.02,9.63691565]
[1757224619254,32.01912126,203.03,203.02,5.70535707]
[1757224620105,32.01912126,203.03,203.02,2.49519789]
[1757224623790,36.94450174,203.03,203.02,2.49519789]
[1757224624490,32.01912126,203.03,203.02,2.49519789]
[1757224624674,32.01912126,203.03,203.02,2.49784348]
[1757224626504,0.74,203.03,203.02,2.49784348]
[1757224626677,38.22,203.03,203.02,2.49784348]
[1757224631900,38.22,203.03,203.02,2.49895182]
[1757224641213,37.54,203.03,203.02,3.16895182]
[1757224641781,0.06,203.03,203.02,3.16895182]
[1757224641989,37.52,203.03,203.02,7.1005104]
[1757224642711,37.52,203.03,203.02,6.4305104]
[1757224642903,37.52,203.03,203.02,2.49895182]
[1757224648529,38.19,203.03,203.02,2.49895182]
[1757224661626,37.52,203.03,203.02,2.49895182]
[1757224664350,38.19,203.03,203.02,2.49895182]
[1757224673960,37.52,203.03,203.02,2.49895182]
[1757224674450,38.22,203.03,203.02,2.49895182]
[1757224676242,37.52,203.03,203.02,2.49895182]
[1757224678958,37.52,203.03,203.02,2.50557322]
[1757224680451,38.22,203.03,203.02,2.50557322]
[1757224680953,37.52,203.03,203.02,2.50557322]
[1757224681557,38.22,203.03,203.02,2.50557322]
[1757224682242,37.52,203.03,203.02,2.50557322]
[1757224683866,38.22,203.03,203.02,2.50557322]
[1757224689269,37.52,203.03,203.02,2.50557322]
[1757224692778,38.22,203.03,203.02,2.50557322]
[1757224695877,0.76,203.03,203.02,2.50557322]
[1757224696052,38.2,203.03,203.02,2.50557322]
[1757224697375,37.5,203.03,203.02,2.50557322]
[1757224697872,37.5,203.03,203.02,8.28011608]
[1757224706570,37.5,203.03,203.02,8.27983137]
[1757224706772,38.2,203.03,203.02,8.27983137]
[1757224708391,37.5,203.03,203.02,8.27983137]
[1757224710210,37.5,203.03,203.02,8.27993165]
[1757224710392,38.2,203.03,203.02,8.27993165]
[1757224711590,37.5,203.03,203.02,8.27993165]
[1757224720595,38.2,203.03,203.02,8.27993165]
[1757224723295,37.5,203.03,203.02,8.27993165]
[1757224724086,38.2,203.03,203.02,8.27993165]
[1757224724702,38.2,203.03,203.02,8.28069873]
[1757224728190,43.12538048,203.03,203.02,8.28069873]
[1757224728387,43.12538048,203.03,203.02,2.50615587]
[1757224745223,43.12538048,203.03,203.02,2.50501913]
[1757224751320,38.2,203.03,203.02,2.50501913]
[1757224751620,37.5,203.03,203.02,2.50501913]
[1757224751826,38.15,203.03,203.02,10.78571786]
[1757224752200,38.15,203.03,203.02,2.50501913]
[1757224759723,38.15,203.03,203.02,13.29073699]
[1757224761429,38.15,203.03,203.02,2.50501913]
[1757224762111,37.5,203.03,203.02,2.50501913]
[1757224763808,37.5,203.03,203.02,15.79575612]
[1757224766014,37.5,203.03,203.02,2.50501913]
[1757224766516,38.17,203.03,203.02,2.50501913]
[1757224781936,37.5,203.03,203.02,2.50501913]
[1757224786449,38.17,203.03,203.02,2.50501913]
[1757224787850,37.5,203.03,203.02,2.50501913]
[1757224789751,37.5,203.03,203.02,2.50501913]
[1757224793458,38.18,203.03,203.02,2.50501913]
[1757224793754,38.16,203.03,203.02,2.50501913]
[1757224796553,37.48,203.03,203.02,2.50501913]
[1757224798855,38.16,203.03,203.02,2.50501913]
[1757224800766,37.48,203.03,203.02,2.50501913]
[1757224802158,37.48,203.03,203.02,2.5064373]
[1757224802853,37.48,203.03,203.02,17.30334967]
[1757224803464,37.48,203.03,203.02,2.5064373]
[1757224805653,37.48,203.03,203.02,2.50631969]
[1757224807063,37.48,203.03,203.02,17.30323207]
[1757224807264,0.06,203.03,203.02,20.53089031]
[1757224807454,37.48,203.03,203.02,20.53089031]
[1757224808451,37.48,203.03,203.02,18.01323207]
[1757224817675,0.06,203.03,203.02,22.93885516]
[1757224817885,37.48,203.03,203.02,22.93885516]
[1757224818662,37.48,203.03,203.02,18.01323207]
[1757224820161,37.48,203.03,203.02,18.01099378]
[1757224821986,37.48,203.03,203.02,17.30099378]
[1757224822364,37.48,203.03,203.02,17.99099378]
[1757224823965,37.48,203.03,203.02,17.30099378]
[1757224826876,37.48,203.03,203.02,17.99099378]
[1757224827783,37.48,203.03,203.02,17.30099378]
[1757224832776,37.48,203.03,203.02,19.81865202]
[1757224842396,43.07538048,203.03,203.02,17.30099378]
[1757224842692,45.59303872,203.03,203.02,17.30099378]
[1757224843691,43.07538048,203.03,203.02,17.30099378]
[1757224847694,47.00941361,203.03,203.02,17.30099378]
[1757224847892,47.00941361,203.03,203.02,2.5040814]
[1757224849889,43.07538048,203.03,203.02,2.5040814]
[1757224856312,5.65538048,203.03,203.02,2.5040814]
[1757224856491,43.07538048,203.03,203.02,2.5040814]
[1757224860327,38.15,203.03,203.02,2.5040814]
[1757224861988,43.07538048,203.03,203.02,2.5040814]
[1757224862192,37.48,203.03,203.02,2.5040814]
[1757224862898,0.77,203.03,203.02,2.5040814]
[1757224863097,38.17,203.03,203.02,2.5040814]
[1757224863291,37.46,203.03,203.02,2.5040814]
[1757224863690,38.17,203.03,203.02,2.5040814]
[1757224865194,37.46,203.03,203.02,2.5040814]
[1757224866606,37.46,203.03,203.02,3.1940814]
[1757224867008,0.06,203.03,203.02,3.1940814]
[1757224867225,37.46,203.03,203.02,3.1940814]
[1757224867403,37.46,203.03,203.02,17.99026399]
[1757224867606,37.46,203.03,203.02,21.92429712]
[1757224868002,37.46,203.03,203.02,17.30026399]
[1757224868409,37.46,203.03,203.02,17.99026399]
[1757224874933,37.46,203.03,203.02,17.30026399]
[1757224875313,37.46,203.03,203.02,2.5040814]
[1757224877637,36.50593176,203.03,203.02,2.5040814]
[1757224877839,37.21593176,203.03,203.02,2.5040814]
[1757224878130,42.14131224,203.03,203.02,2.5040814]
[1757224880939,46.07534537,203.03,203.02,2.5040814]
[1757224883037,51.28185505,203.03,203.02,2.5040814]
[1757224883234,46.13534537,203.03,203.02,2.5040814]
[1757224883440,48.73860021,203.03,203.02,2.5040814]
[1757224884136,48.73860021,203.03,203.02,2.50233332]
[1757224884329,48.73860021,203.03,203.02,0.03]
[1757224890744,44.80456708,203.03,203.02,0.03]
[1757224891049,48.73860021,203.03,203.02,0.03]
[1757224901754,62.33419422,203.03,203.02,0.03]
[1757224902135,26.0,203.01,203.0,1e-08]
[1757224902354,67.35403313,203.01,203.0,1e-08]
[1757224902533,68.03403313,203.01,203.0,1e-08]
[1757224903256,70.00773357,203.01,203.0,1e-08]
[1757224903637,74.93359929,203.01,203.0,1e-08]
[1757224905536,73.51891438,203.01,203.0,1e-08]
[1757224907161,36.09891438,203.01,203.0,1e-08]
[1757224907352,72.83891438,203.01,203.0,1e-08]
[1757224907739,73.51891438,203.01,203.0,1e-08]
[1757224907938,36.09891438,203.01,203.0,1e-08]
[1757224908140,73.51891438,203.01,203.0,1e-08]
[1757224914563,70.99956616,203.01,203.0,1e-08]
[1757224914745,73.51891438,203.01,203.0,1e-08]
[1757224916263,73.57891438,203.01,203.0,1e-08]
[1757224917059,70.37956616,203.01,203.0,1e-08]
[1757224917245,72.89891438,203.01,203.0,1e-08]
[1757224917960,72.89891438,203.01,203.0,0.67000001]
[1757224918342,72.89891438,203.01,203.0,1e-08]
[1757224920467,35.47891438,203.01,203.0,1e-08]
[1757224920669,72.89891438,203.01,203.0,1e-08]
[1757224921044,73.57891438,203.01,203.0,1e-08]
[1757224929479,71.05956616,203.01,203.0,1e-08]
[1757224929657,73.57891438,203.01,203.0,1e-08]
[1757224935558,71.05956616,203.01,203.0,1e-08]
[1757224940685,73.57891438,203.01,203.0,1e-08]
[1757224949788,72.89891438,203.01,203.0,1e-08]
[1757224949977,70.37956616,203.01,203.0,1e-08]
[1757224950171,72.89891438,203.01,203.0,1e-08]
[1757224953389,35.47891438,203.01,203.0,1e-08]
[1757224953572,72.89891438,203.01,203.0,1e-08]
[1757224953772,73.61891438,203.01,203.0,1e-08]
[1757224957925,72.89891438,203.01,203.0,1e-08]
[1757224959022,73.61891438,203.01,203.0,1e-08]
[1757224960637,72.89891438,203.01,203.0,1e-08]
[1757224961834,32.95956616,203.01,203.0,0.71000001]
[1757224962232,70.37956616,203.01,203.0,3.04830796]
[1757224962413,32.95956616,203.01,203.0,3.04830796]
[1757224963335,70.37956616,203.01,203.0,3.04830796]
[1757224963739,65.45370044,203.01,203.0,3.04830796]
[1757224964634,26.06,203.01,203.0,3.04830796]
[1757224964836,37.48,203.01,203.0,3.04830796]
[1757224968639,37.48,203.01,203.0,6.98258766]
[1757224969170,37.48,203.01,203.0,3.04830796]
[1757224971652,37.48,203.01,203.0,2.33830796]
[1757224972945,37.48,203.01,203.0,2.99830796]
[1757224973152,42.40586572,203.01,203.0,2.99830796]
[1757224973533,42.40586572,203.01,203.0,2.33830796]
[1757224974648,42.40586572,203.01,203.0,2.99830796]
[1757224974846,42.40586572,203.01,203.0,2.33830796]
[1757224977253,42.40586572,203.01,203.0,2.99830796]
[1757224977742,42.40586572,203.01,203.0,2.33830796]
[1757224980331,43.12586572,203.01,203.0,2.33830796]
[1757224985035,42.40586572,203.01,203.0,2.33830796]
[1757224985938,37.46,203.01,203.0,2.33830796]
[1757224987253,37.46,203.01,203.0,2.99830796]
[1757224987839,37.48,203.01,203.0,2.99830796]
[1757224989352,37.48,203.01,203.0,6.93258766]
[1757224991142,37.48,203.01,203.0,14.22748029]
[1757224991963,37.48,203.01,203.0,6.93258766]
[1757224996847,37.48,203.01,203.0,2.99830796]
[1757224997045,37.48,203.01,203.0,6.93258766]
[1757224997246,37.48,203.01,203.0,2.33830796]
[1757224997570,37.48,203.01,203.0,6.37719901]
[1757224997868,37.48,203.01,203.0,7.03719901]
[1757225000268,37.48,203.01,203.0,3.10291931]
[1757225000471,37.48,203.01,203.0,7.03719901]
[1757225000765,37.48,203.01,203.0,6.37719901]
[1757225001768,37.48,203.01,203.0,7.03719901]
[1757225002270,38.18,203.01,203.0,2.44291931]
[1757225002474,43.10586572,203.01,203.0,2.44291931]
[1757225006871,42.40586572,203.01,203.0,2.44291931]
[1757225007378,43.10586572,203.01,203.0,2.44291931]
[1757225007671,42.40586572,203.01,203.0,2.44291931]
[1757225007861,43.10586572,203.01,203.0,2.44291931]
[1757225008062,42.40586572,203.01,203.0,2.44291931]
[1757225008771,37.48,203.01,203.0,2.44291931]
[1757225011781,37.48,203.01,203.0,7.03719901]
[1757225012557,37.48,203.01,203.0,3.10291931]
[1757225012759,37.48,203.01,203.0,7.03719901]
[1757225013861,0.06,203.01,203.0,7.03719901]
[1757225014198,37.5,203.01,203.0,11.96330738]
[1757225014682,37.5,203.01,203.0,14.07439802]
[1757225015574,37.5,203.01,203.0,19.00050639]
[1757225015783,0.06,203.01,203.0,22.93478609]
[1757225016078,37.5,203.01,203.0,22.93478609]
[1757225016486,0.06,203.01,203.0,36.5303801]
[1757225016662,37.52,203.03,203.01,13.59559401]
[1757225016988,37.52,203.03,203.02,20.63279301]
[1757225017367,0.06,203.03,203.02,35.42605714]
[1757225017888,0.06,203.03,203.02,40.35168023]
[1757225018188,37.52,203.04,203.03,17.52987371]
[1757225018481,37.52,203.04,203.03,20.63279301]
[1757225018867,37.52,203.04,203.03,35.42532771]
[1757225019470,37.52,203.04,203.03,40.35070819]
[1757225019471,0.06,203.04,203.03,40.35070819]
[1757225021700,0.06,203.07,203.06,13.59559401]
[1757225021860,0.06,203.07,203.06,19.97279301]
[1757225022065,0.06,203.07,203.06,20.63279301]
[1757225022277,0.06,203.07,203.06,16.69851331]
[1757225022886,0.06,203.07,203.06,31.488131]
[1757225023269,0.06,203.07,203.06,36.41278381]
[1757225024270,0.06,203.08,203.06,36.41278381]
[1757225024574,0.06,203.08,203.07,21.62292361]
[1757225025079,0.06,203.08,203.07,36.41181222]
[1757225027585,0.06,203.08,203.07,17.23180791]
[1757225028071,0.76,203.08,203.07,17.23180791]
[1757225029884,0.06,203.08,203.07,17.23180791]
[1757225032392,0.06,203.08,203.07,17.26180791]
[1757225034189,0.06,203.08,203.07,36.46181222]
[1757225042001,0.06,203.08,203.07,36.45183092]
[1757225045201,0.06,203.08,203.07,36.45183092]
[1757225047204,0.06,203.08,203.07,36.45149784]
[1757225052088,0.06,203.08,203.07,35.77149784]
[1757225054303,0.06,203.08,203.07,35.76760398]
[1757225062498,0.06,203.08,203.07,36.46760398]
[1757225063919,0.06,203.08,203.07,35.76760398]
[1757225066315,0.06,203.08,203.07,36.46760398]
[1757225067418,0.06,203.08,203.07,35.76760398]
[1757225068019,0.06,203.08,203.07,36.46760398]
[1757225068519,0.06,203.08,203.07,35.76760398]
[1757225071931,0.06,203.08,203.07,36.46760398]
[1757225073306,0.06,203.08,203.07,35.76760398]
[1757225073611,0.06,203.08,203.07,36.46760398]
[1757225074116,0.06,203.08,203.07,35.76760398]
[1757225074818,0.06,203.08,203.07,36.46760398]
[1757225075417,0.06,203.08,203.07,35.76760398]
[1757225075604,0.06,203.08,203.07,36.46760398]
[1757225076321,0.06,203.08,203.07,35.76760398]
[1757225076724,0.06,203.08,203.07,36.46760398]
[1757225077517,0.06,203.08,203.07,35.76760398]
[1757225077824,0.06,203.08,203.07,36.46760398]
[1757225078520,0.06,203.08,203.07,35.76760398]
[1757225078925,0.06,203.08,203.07,36.46760398]
[1757225079423,0.06,203.08,203.07,35.76760398]
[1757225082531,0.06,203.08,203.07,36.46760398]
[1757225086618,0.06,203.08,203.07,40.69960398]
[1757225086824,0.06,203.08,203.07,35.76760398]
[1757225087029,0.06,203.08,203.07,35.79182405]
[1757225088427,0.06,203.08,203.07,36.49182405]
[1757225088814,0.06,203.08,203.07,40.49686804]
[1757225090527,0.06,203.08,203.07,38.04393691]
[1757225090738,0.00020485,203.08,203.07,40.49681054]
[1757225091436,0.00020485,203.08,203.07,36.49176655]
[1757225100132,0.00020485,203.08,203.07,36.4866202]
[1757225102333,0.67020485,203.08,203.07,35.7866202]
[1757225102931,0.00020485,203.08,203.07,35.7866202]
[1757225109637,0.06,203.09,203.08,13.59559401]
[1757225109829,0.73,203.09,203.08,16.04332129]
[1757225110343,0.73,203.09,203.08,18.0150759]
[1757225111141,0.73,203.09,203.08,22.93924371]
[1757225114753,0.73,203.09,203.08,22.93715189]
[1757225116757,0.06,203.09,203.08,22.93715189]
[1757225116957,0.06,203.09,203.08,48.93715189]
[1757225118344,0.06,203.09,203.08,48.93768706]
[1757225132464,0.06,203.09,203.08,48.96768706]
[1757225132958,0.06,203.09,203.08,48.96805247]
[1757225136862,0.06,203.09,203.08,49.61805247]
[1757225139952,0.06,203.09,203.08,48.96805247]
[1757225140854,0.76,203.09,203.08,48.96805247]
[1757225141569,0.06,203.09,203.08,48.96805247]
[1757225145374,0.76,203.1,203.08,48.96805247]
[1757225145674,0.76,203.1,203.09,7.37046139]
[1757225146174,0.76,203.1,203.09,22.15935001]
[1757225148178,0.76,203.1,203.09,22.17281032]
[1757225151281,0.76,203.1,203.09,17.24888497]
[1757225152164,0.76,203.1,203.09,17.27888497]
[1757225159787,0.76,203.1,203.09,19.79425978]
[1757225160775,0.76,203.1,203.09,17.27888497]
[1757225164774,0.76,203.1,203.09,19.79425978]
[1757225165091,0.06,203.1,203.09,24.71818513]
[1757225165387,37.46,203.1,203.09,25.37818513]
[1757225166691,37.46,203.1,203.09,24.71818513]
[1757225167094,37.46,203.1,203.09,25.37818513]
[1757225167391,37.46,203.1,203.09,24.71818513]
[1757225167888,0.06,203.1,203.09,25.37818513]
[1757225168389,37.46,203.1,203.09,25.37818513]
[1757225169995,37.46,203.1,203.09,24.71818513]
[1757225170200,37.46,203.1,203.09,25.37818513]
[1757225173198,37.46,203.1,203.09,24.71818513]
[1757225175571,38.12,203.1,203.09,24.71818513]
[1757225175772,37.46,203.1,203.09,24.71818513]
[1757225176302,37.46,203.1,203.09,17.27888497]
[1757225176303,38.12,203.1,203.09,17.27888497]
[1757225176788,38.12,203.1,203.09,2.48999635]
[1757225178201,38.12,203.1,203.09,5.00537116]
[1757225178385,38.12,203.1,203.09,19.79571799]
[1757225178881,38.12,203.1,203.09,19.79567489]
[1757225179795,37.46,203.1,203.09,19.79567489]
[1757225180398,0.06,203.1,203.09,24.71960024]
[1757225181497,37.46,203.1,203.09,24.71960024]
[1757225184680,0.06,203.1,203.09,24.71960024]
[1757225184881,37.46,203.1,203.09,24.71960024]
[1757225185596,0.06,203.1,203.09,22.20422543]
[1757225185989,37.46,203.1,203.09,22.20422543]
[1757225186815,0.06,203.1,203.09,22.20422543]
[1757225187102,37.46,203.1,203.09,22.20422543]
[1757225190409,37.46,203.1,203.09,17.28030008]
[1757225190583,38.14,203.1,203.09,17.28030008]
[1757225192000,37.46,203.1,203.09,17.28030008]
[1757225193307,37.46,203.1,203.09,19.79567489]
[1757225198204,37.46,203.1,203.09,17.28030008]
[1757225204218,37.46,203.1,203.09,17.28075845]
[1757225206399,38.14,203.1,203.09,17.28075845]
[1757225207005,37.46,203.1,203.09,17.28075845]
[1757225207421,37.46,203.1,203.09,22.2046838]
[1757225208707,37.46,203.1,203.09,24.72005861]
[1757225211503,38.18,203.1,203.09,26.13446708]
[1757225212333,37.46,203.1,203.09,26.13446708]
[1757225216733,37.46,203.1,203.09,26.80446708]
[1757225218631,37.46,203.1,203.09,26.13446708]
[1757225218934,37.46,203.1,203.09,26.13384484]
[1757225219508,0.06,203.1,203.09,26.13384484]
[1757225219722,37.46,203.1,203.09,26.13384484]
[1757225221031,37.46,203.1,203.09,21.20991949]
[1757225221212,37.46,203.1,203.09,17.28013621]
[1757225223433,37.46,203.1,203.09,22.87406156]
[1757225223612,37.46,203.1,203.09,22.20406156]
[1757225223936,0.06,203.1,203.09,22.20406156]
[1757225224234,37.46,203.1,203.09,22.20406156]
[1757225224417,0.06,203.1,203.09,22.20406156]
[1757225224620,37.46,203.1,203.09,22.20406156]
[1757225226539,0.06,203.1,203.09,22.20406156]
[1757225227044,37.46,203.1,203.09,22.20406156]
[1757225227225,0.06,203.1,203.09,22.20406156]
[1757225227430,37.46,203.1,203.09,22.20406156]
[1757225228039,37.46,203.1,203.09,17.28013621]
[1757225228629,0.06,203.1,203.09,17.28013621]
[1757225228830,37.46,203.1,203.09,17.28013621]